bitfinex/quotes_BTCUSD_20250917
["timestamp","ask_amount","ask_price","bid_price","bid_amount"]
[1758133155822,0.3404,115660.0,115640.0,0.17294929]
[1758133155968,0.5376821,115660.0,115650.0,0.00863721]
[1758133156170,0.5376821,115660.0,115650.0,0.38775721]
[1758133156171,0.5134621,115660.0,115650.0,0.38775721]
[1758133156441,0.87136145,115660.0,115650.0,0.37912]
[1758133156646,0.51346189,115660.0,115650.0,0.38047]
[1758133156831,0.87136145,115660.0,115650.0,0.37912]
[1758133157204,0.51547189,115660.0,115650.0,0.37912]
[1758133157388,0.87136145,115660.0,115650.0,0.37912]
[1758133157596,0.90083145,115660.0,115650.0,0.37912]
[1758133157824,0.17295053,115640.0,115630.0,0.4]
[1758133158016,0.17294767,115650.0,115630.0,0.95180099]
[1758133158226,0.17294767,115650.0,115640.0,0.18159149]
[1758133158227,0.53083514,115650.0,115640.0,0.18159149]
[1758133158432,0.53083514,115650.0,115630.0,0.95180099]
[1758133158846,0.53083514,115650.0,115640.0,0.00864096]
[1758133159045,0.53083514,115650.0,115640.0,0.00999096]
[1758133159323,0.35789956,115650.0,115640.0,0.18294149]
[1758133159541,0.35789956,115650.0,115640.0,0.17430053]
[1758133159755,0.53284514,115650.0,115630.0,0.95180099]
[1758133159977,0.53284514,115650.0,115630.0,0.86410967]
[1758133159978,0.35789956,115640.0,115630.0,0.86410967]
[1758133160214,0.35789956,115640.0,115630.0,1.03842516]
[1758133160394,0.54956792,115660.0,115630.0,1.03842516]
[1758133160395,0.53083514,115650.0,115630.0,1.03842516]
[1758133160626,0.53085009,115640.0,115630.0,0.86545967]
[1758133160859,0.53085009,115640.0,115630.0,0.4]
[1758133161076,0.56032009,115640.0,115630.0,0.4]
[1758133161266,0.20242053,115640.0,115630.0,0.4]
[1758133161492,0.35789956,115640.0,115630.0,0.57296549]
[1758133161654,0.53085009,115640.0,115630.0,0.57296549]
[1758133161890,0.35789956,115640.0,115630.0,0.57431549]
[1758133162103,0.54956792,115660.0,115630.0,0.65958516]
[1758133162302,0.88000748,115660.0,115640.0,0.55978853]
[1758133162502,0.88000748,115660.0,115640.0,0.55114907]
[1758133162663,0.88000748,115660.0,115650.0,0.00863721]
[1758133163069,0.90947748,115660.0,115640.0,0.3782]
[1758133163269,1.27781164,115650.0,115640.0,0.3782]
[1758133163467,0.17295053,115640.0,115630.0,0.77796]
[1758133163697,0.55507009,115640.0,115630.0,0.77796]
[1758133163911,0.53085009,115640.0,115630.0,0.77796]
[1758133164137,0.51293558,115650.0,115630.0,0.95227549]
[1758133164337,0.51293558,115650.0,115630.0,0.95311549]
[1758133164508,0.51293558,115650.0,115630.0,0.95227549]
[1758133164832,0.35789956,115650.0,115640.0,0.17295053]
[1758133165090,0.53083514,115650.0,115630.0,1.03838516]
[1758133165300,0.53083514,115650.0,115630.0,0.86457967]
[1758133165470,0.53083514,115650.0,115630.0,0.95092549]
[1758133165471,0.35789956,115640.0,115630.0,0.95092549]
[1758133165985,0.35789956,115640.0,115630.0,0.95227549]
[1758133166195,0.53085009,115640.0,115630.0,0.77796]
[1758133166855,0.35789956,115640.0,115630.0,0.95227549]
[1758133167088,0.53286009,115640.0,115630.0,0.77796]
[1758133167340,0.17293558,115650.0,115630.0,0.95227549]
[1758133167595,0.88000748,115660.0,115640.0,0.18159149]
[1758133167852,0.00054127,115660.0,115650.0,0.55017558]
[1758133168064,0.00054127,115660.0,115650.0,0.55152558]
[1758133168269,0.00054127,115660.0,115650.0,0.63679525]
[1758133169105,0.00054127,115660.0,115650.0,0.46385967]
[1758133169313,0.17346189,115660.0,115650.0,0.46385967]
[1758133169528,0.00054127,115660.0,115650.0,0.46385967]
[1758133169742,0.17346189,115660.0,115650.0,0.46385967]
[1758133169951,0.53136145,115660.0,115650.0,0.46385967]
[1758133170204,0.53136145,115660.0,115650.0,0.46250967]
[1758133170444,0.17346189,115660.0,115650.0,0.46385967]
[1758133170664,0.17346189,115660.0,115650.0,0.46250967]
[1758133170874,0.53136145,115660.0,115650.0,0.46250967]
[1758133171052,0.53136145,115660.0,115650.0,0.86250967]
[1758133171501,0.53136145,115660.0,115650.0,0.77728]
[1758133171785,1.3961899,115660.0,115650.0,4e-05]
[1758133172015,1.03829034,115660.0,115650.0,4e-05]
[1758133172245,1.7727499,115660.0,115650.0,4e-05]
[1758133173357,1.7726299,115660.0,115650.0,4e-05]
[1758133174973,1.8726299,115660.0,115650.0,4e-05]
[1758133175173,1.92665295,115660.0,115650.0,4e-05]
[1758133175374,1.22879453,115610.0,115600.0,0.06835573]
[1758133175623,1.80462387,115610.0,115600.0,0.06835573]
[1758133175827,1.7193542,115610.0,115600.0,0.06835573]
[1758133176031,1.36129464,115610.0,115600.0,0.06835573]
[1758133176390,1.7191542,115610.0,115600.0,0.00014]
[1758133176589,1.3432742,115610.0,115600.0,0.0002813]
[1758133176836,1.7191142,115610.0,115600.0,0.0002813]
[1758133177215,1.7190342,115610.0,115600.0,0.0002813]
[1758133177412,0.87089497,115610.0,115600.0,0.0002813]
[1758133177705,0.69789956,115610.0,115600.0,0.0002813]
[1758133177891,0.87089497,115610.0,115600.0,0.0002813]
[1758133178150,0.53089497,115610.0,115600.0,0.0016313]
[1758133178385,0.53089497,115610.0,115600.0,0.0002813]
[1758133178570,0.53089497,115610.0,115600.0,0.0001813]
[1758133178980,0.53593497,115610.0,115600.0,0.0001813]
[1758133179186,0.56010497,115610.0,115600.0,0.0001813]
[1758133180060,0.20220541,115610.0,115600.0,0.0001813]
[1758133180277,1.3432742,115610.0,115600.0,0.0001813]
[1758133180719,1.36065464,115610.0,115600.0,0.0001813]
[1758133181131,0.36921,115610.0,115600.0,0.0001813]
[1758133181336,1.30539532,115610.0,115600.0,0.0001813]
[1758133181546,0.95432532,115610.0,115600.0,0.0001813]
[1758133181720,1.32948532,115610.0,115600.0,0.0001813]
[1758133182055,1.24808497,115610.0,115600.0,0.0001813]
[1758133182271,1.42808497,115610.0,115600.0,0.0001813]
[1758133182480,1.42601497,115610.0,115600.0,0.0001813]
[1758133182686,1.05089497,115610.0,115600.0,0.0001813]
[1758133182889,1.42593497,115610.0,115600.0,0.0001813]
[1758133183126,1.8983142,115610.0,115600.0,0.0001813]
[1758133183464,1.54025464,115610.0,115600.0,0.0001813]
[1758133183850,0.80450508,115610.0,115600.0,0.0001813]
[1758133184076,1.42569497,115610.0,115600.0,0.0001813]
[1758133184294,1.42569497,115610.0,115600.0,0.17454168]
[1758133184295,0.87789956,115610.0,115600.0,0.17454168]
[1758133184553,0.35789956,115610.0,115600.0,0.0015313]
[1758133184722,0.53089497,115610.0,115600.0,0.01018572]
[1758133185148,0.35789956,115610.0,115600.0,0.26930577]
[1758133185352,0.20580885,115630.0,115610.0,0.17299541]
[1758133185353,0.55619885,115630.0,115610.0,0.17299541]
[1758133185553,0.53088001,115620.0,115610.0,0.17299541]
[1758133185811,0.18163885,115630.0,115610.0,0.17518541]
[1758133186216,0.50056823,115630.0,115620.0,0.17298045]
[1758133186377,0.67353372,115630.0,115620.0,0.26044012]
[1758133186694,0.54734518,115640.0,115620.0,0.66044012]
[1758133186858,0.67351876,115640.0,115630.0,0.17296549]
[1758133187056,0.18164023,115650.0,115630.0,0.17515549]
[1758133187291,0.68220846,115650.0,115640.0,0.17295053]
[1758133187438,0.68220846,115650.0,115640.0,0.17430053]
[1758133187812,0.55612665,115660.0,115640.0,0.17514053]
[1758133188024,0.68253488,115660.0,115650.0,0.00863721]
[1758133188241,0.68253488,115660.0,115650.0,0.00135]
[1758133188453,0.68267615,115660.0,115650.0,0.00135]
[1758133188668,0.17293558,115650.0,115640.0,0.08526967]
[1758133188887,0.67350381,115650.0,115640.0,0.08526967]
[1758133189094,0.17296549,115630.0,115620.0,0.4]
[1758133189276,0.67353372,115630.0,115620.0,0.48526967]
[1758133189412,0.67353372,115630.0,115620.0,0.48661967]
[1758133190073,0.67353372,115630.0,115620.0,0.4]
[1758133190488,0.67560372,115630.0,115620.0,0.4]
[1758133190735,0.70274372,115630.0,115620.0,0.4]
[1758133190975,0.70274372,115630.0,115600.0,0.00014]
[1758133190976,0.17299541,115610.0,115600.0,0.00014]
[1758133191196,1.47243331,115610.0,115600.0,0.00014]
[1758133191419,1.50164331,115610.0,115600.0,0.00014]
[1758133191855,1.12804331,115610.0,115600.0,0.00014]
[1758133192076,1.12804331,115610.0,115600.0,0.0002813]
[1758133192315,1.21331298,115610.0,115600.0,0.0002813]
[1758133192524,1.12804331,115610.0,115600.0,0.0002813]
[1758133192728,1.50132331,115610.0,115600.0,0.0002813]
[1758133192930,1.68132331,115610.0,115600.0,0.0002813]
[1758133193129,1.30804331,115610.0,115600.0,0.0002813]
[1758133193381,1.59597364,115610.0,115600.0,0.0002813]
[1758133193604,1.68124331,115610.0,115600.0,0.0002813]
[1758133193980,1.56664364,115610.0,115600.0,0.0001813]
[1758133194178,1.56660364,115610.0,115600.0,0.0001813]
[1758133194621,1.56664364,115610.0,115600.0,0.0001813]
[1758133194992,1.56648364,115610.0,115600.0,0.0001813]
[1758133195400,1.59569364,115610.0,115600.0,0.0001813]
[1758133195608,1.68096331,115610.0,115600.0,0.0001813]
[1758133196021,1.76623298,115610.0,115600.0,0.0001813]
[1758133196492,0.89274475,115610.0,115600.0,0.0001813]
[1758133196677,1.39331298,115610.0,115600.0,0.0001813]
[1758133196886,1.76595298,115610.0,115600.0,0.0001813]
[1758133197131,1.22277364,115610.0,115600.0,0.0001813]
[1758133197353,1.59537364,115610.0,115600.0,0.0001813]
[1758133198352,1.21980364,115610.0,115600.0,0.0001813]
[1758133198570,0.69299541,115610.0,115600.0,0.0001813]
[1758133198784,1.56596364,115610.0,115600.0,0.00883572]
[1758133198996,1.19356364,115610.0,115600.0,0.00883572]
[1758133199423,1.01356364,115610.0,115600.0,0.0001813]
[1758133199864,0.67356364,115610.0,115600.0,0.1831961]
[1758133200092,0.67356364,115610.0,115600.0,0.0015313]
[1758133200312,1.10411331,115610.0,115600.0,0.0001813]
[1758133200534,0.22308433,115600.0,115590.0,0.0001]
[1758133200784,1.13092828,115600.0,115590.0,0.0001]
[1758133201033,1.15979828,115600.0,115590.0,0.0001]
[1758133201485,0.78771828,115600.0,115560.0,0.19148343]
[1758133201723,0.17304031,115580.0,115570.0,0.17305529]
[1758133201930,0.88486534,115590.0,115580.0,0.17304031]
[1758133202151,0.54481127,115600.0,115580.0,0.17439031]
[1758133202425,0.6735795,115600.0,115590.0,0.17302534]
[1758133202644,0.50066823,115600.0,115590.0,0.17437534]
[1758133202853,0.0001,115600.0,115590.0,0.26048501]
[1758133203544,0.0001,115600.0,115590.0,0.63208501]
[1758133203765,0.0001,115610.0,115600.0,0.17301038]
[1758133203982,0.0001,115610.0,115600.0,1.10103828]
[1758133204188,0.0001,115610.0,115600.0,0.60047005]
[1758133204629,0.0001,115610.0,115600.0,1.00047005]
[1758133204877,0.00018146,115610.0,115600.0,1.0264498]
[1758133205094,0.00018146,115610.0,115600.0,1.0566017]
[1758133205336,0.00018146,115610.0,115600.0,1.62176965]
[1758133205558,0.00018146,115610.0,115600.0,1.12120142]
[1758133205768,0.00018146,115610.0,115600.0,1.62176965]
[1758133206001,0.00018146,115610.0,115600.0,1.12120142]
[1758133206434,0.00018146,115610.0,115600.0,1.09104952]
[1758133206663,8.146e-05,115610.0,115600.0,1.09104952]
[1758133207739,8.146e-05,115610.0,115600.0,1.62176965]
[1758133209089,8.146e-05,115610.0,115600.0,1.67176965]
[1758133209327,0.0001,115630.0,115620.0,0.56298045]
[1758133209533,0.0001,115630.0,115620.0,1.85177835]
[1758133209813,0.0001,115630.0,115620.0,1.85396835]
[1758133209982,0.0001,115630.0,115620.0,2.25396835]
[1758133210215,0.0001,115640.0,115630.0,0.54311739]
[1758133210418,0.00018149,115640.0,115630.0,0.71230706]
[1758133210658,0.00018149,115640.0,115630.0,0.71365706]
[1758133210834,0.00018149,115640.0,115630.0,1.11365706]
[1758133211271,0.00018149,115640.0,115630.0,1.11375706]
[1758133211477,8.149e-05,115640.0,115630.0,1.61432529]
[1758133212137,8.149e-05,115640.0,115630.0,1.11375706]
[1758133212924,8.149e-05,115640.0,115630.0,1.08706807]
[1758133213128,8.149e-05,115640.0,115630.0,0.74706807]
[1758133213342,0.67370025,115640.0,115630.0,0.48536967]
[1758133213546,0.758374,115640.0,115630.0,0.0001]
[1758133213750,0.787804,115640.0,115630.0,0.0001]
[1758133214614,1.127804,115640.0,115630.0,0.0001]
[1758133215490,0.17296549,115630.0,115620.0,0.0001]
[1758133215728,0.67353372,115630.0,115620.0,0.0001]
[1758133215975,0.75880339,115630.0,115620.0,0.0001]
[1758133216222,0.67353372,115630.0,115620.0,0.0001]
[1758133216393,1.04306372,115630.0,115620.0,0.0001]
[1758133216537,1.12833339,115630.0,115620.0,0.0001]
[1758133216745,1.49769339,115630.0,115620.0,0.0001]
[1758133216948,0.51298045,115620.0,115610.0,0.0001]
[1758133217162,1.01354868,115620.0,115610.0,0.0001]
[1758133217377,0.17300905,115610.0,115590.0,0.94238203]
[1758133217590,0.67357728,115610.0,115590.0,1.0284917]
[1758133217799,0.17301038,115600.0,115590.0,1.0284917]
[1758133218008,0.17301038,115600.0,115590.0,1.0290017]
[1758133218223,0.17311038,115600.0,115590.0,0.85597967]
[1758133218435,0.67367861,115600.0,115590.0,0.76936]
[1758133218641,0.71997567,115600.0,115590.0,0.4]
[1758133218869,0.67367861,115600.0,115590.0,0.40008146]
[1758133219344,0.67565861,115600.0,115590.0,0.40008146]
[1758133219558,0.67861861,115600.0,115590.0,0.00012146]
[1758133219766,1.04310861,115600.0,115590.0,0.00012146]
[1758133220383,1.12837828,115600.0,115590.0,0.00012146]
[1758133220585,1.21364795,115600.0,115590.0,0.00012146]
[1758133221031,0.17302534,115590.0,115580.0,0.0001]
[1758133221217,1.46758539,115590.0,115580.0,0.0001]
[1758133221411,1.49711539,115590.0,115580.0,0.0001]
[1758133221619,0.51307026,115560.0,115550.0,0.0001]
[1758133221847,1.38215849,115560.0,115550.0,0.0001]
[1758133222055,1.41158849,115560.0,115550.0,0.0001]
[1758133222260,0.91102026,115560.0,115550.0,0.0001]
[1758133222567,1.04306849,115560.0,115550.0,0.0001]
[1758133222793,0.51307026,115560.0,115550.0,0.0001]
[1758133223003,1.01363849,115560.0,115550.0,0.0001]
[1758133223416,1.10088814,115560.0,115550.0,0.0001]
[1758133223638,1.12833814,115560.0,115550.0,0.0001]
[1758133223877,1.01363849,115560.0,115550.0,0.0001]
[1758133224474,1.01857849,115560.0,115550.0,0.0001]
[1758133224697,1.12833816,115560.0,115550.0,1e-08]
[1758133224908,0.51308524,115550.0,115530.0,0.00014]
[1758133225142,0.5131152,115530.0,115520.0,0.0001]
[1758133225347,1.1009331,115530.0,115520.0,0.0001]
[1758133225554,1.1283831,115530.0,115520.0,0.0001]
[1758133225762,0.62781487,115530.0,115520.0,0.0001]
[1758133225971,1.1283831,115530.0,115520.0,0.0001]
[1758133226181,0.5425452,115530.0,115520.0,0.00057141]
[1758133226425,1.41099343,115530.0,115520.0,0.00057141]
[1758133226638,1.4962631,115530.0,115520.0,0.00057141]
[1758133226847,1.1283831,115530.0,115520.0,0.00057141]
[1758133227083,1.4963031,115530.0,115520.0,0.00057141]
[1758133227290,1.26100454,115530.0,115520.0,0.00057141]
[1758133227512,1.76157277,115530.0,115520.0,0.00057141]
[1758133227746,1.39365277,115530.0,115520.0,0.00057141]
[1758133227969,1.6760631,115530.0,115520.0,0.00057141]
[1758133228186,0.6931152,115530.0,115520.0,0.00057141]
[1758133228401,1.38128343,115530.0,115520.0,0.00057141]
[1758133228627,1.38128343,115530.0,115520.0,0.02657924]
[1758133228833,1.01368343,115530.0,115520.0,0.02657924]
[1758133229075,0.34,115530.0,115520.0,0.11184891]
[1758133229273,0.5131152,115530.0,115520.0,0.11364891]
[1758133229488,0.17310022,115540.0,115520.0,0.11364891]
[1758133229693,0.6736688,115540.0,115520.0,0.51476891]
[1758133229905,0.67368343,115530.0,115520.0,0.42657924]
[1758133230107,0.67862343,115530.0,115520.0,0.02657924]
[1758133230369,0.70311343,115530.0,115520.0,0.02657924]
[1758133230584,0.1731152,115530.0,115520.0,0.02657924]
[1758133230801,0.1731152,115530.0,115520.0,0.02837924]
[1758133231244,0.67368343,115530.0,115520.0,0.02657924]
[1758133231691,0.17310057,115540.0,115520.0,0.20150943]
[1758133231692,0.6736688,115540.0,115520.0,0.20150943]
[1758133231904,0.1731152,115530.0,115520.0,0.20154943]
[1758133232121,0.50056823,115530.0,115520.0,0.20154943]
[1758133232336,0.6736688,115540.0,115530.0,0.1731152]
[1758133232540,0.1731152,115530.0,115520.0,0.19974943]
[1758133232763,0.5217395,115550.0,115530.0,0.1749152]
[1758133232976,1.09539906,115550.0,115530.0,0.26130487]
[1758133233401,0.59483083,115550.0,115530.0,0.08818967]
[1758133233614,0.67366845,115540.0,115530.0,0.08716967]
[1758133233835,0.67564845,115540.0,115530.0,0.0001]
[1758133234062,0.70130845,115540.0,115530.0,0.0001]
[1758133234272,0.76091812,115540.0,115530.0,0.0001]
[1758133234481,0.78657812,115540.0,115530.0,0.0001]
[1758133234696,1.49333812,115540.0,115530.0,0.0001]
[1758133234913,1.57860779,115540.0,115530.0,0.0001]
[1758133235152,0.5131152,115530.0,115520.0,0.00061141]
[1758133235422,0.17313019,115520.0,115510.0,0.00014]
[1758133235631,1.49024809,115520.0,115510.0,0.00028122]
[1758133235841,1.49024809,115520.0,115500.0,0.00034]
[1758133235842,0.51314518,115510.0,115500.0,0.00034]
[1758133236044,0.6737284,115500.0,115490.0,0.00014]
[1758133236251,1.15320807,115500.0,115490.0,0.00022142]
[1758133236471,0.87207774,115500.0,115490.0,0.00022142]
[1758133236716,1.23847774,115500.0,115490.0,0.00022142]
[1758133236930,1.23839774,115500.0,115490.0,0.00022142]
[1758133237142,1.23831774,115500.0,115490.0,0.00022142]
[1758133237831,0.87207774,115500.0,115490.0,0.00022142]
[1758133238082,0.78680807,115500.0,115490.0,0.00022142]
[1758133238291,1.15288807,115500.0,115490.0,0.00022142]
[1758133238738,1.14764807,115500.0,115490.0,0.00022142]
[1758133238953,0.87920017,115500.0,115490.0,0.00022142]
[1758133239135,1.0137284,115500.0,115490.0,0.00022142]
[1758133239383,0.59842984,115500.0,115490.0,0.00022142]
[1758133239606,0.53910518,115510.0,115490.0,0.17559658]
[1758133239835,0.17314518,115510.0,115500.0,0.17316017]
[1758133240044,0.17314518,115510.0,115490.0,0.17343658]
[1758133240483,0.72318342,115500.0,115490.0,0.00026142]
[1758133240705,1.49264807,115500.0,115490.0,0.00026142]
[1758133241248,0.51316017,115500.0,115490.0,0.00026142]
[1758133241461,0.17316017,115500.0,115490.0,0.17549658]
[1758133241682,0.0001,115500.0,115490.0,0.17549658]
[1758133241940,0.0001,115500.0,115490.0,0.26222625]
[1758133242565,0.0001,115500.0,115490.0,0.76279448]
[1758133242802,0.0001,115500.0,115490.0,1.43543448]
[1758133243252,0.0001,115500.0,115490.0,0.93486625]
[1758133243467,0.0001,115500.0,115490.0,1.30022625]
[1758133243684,0.0001,115500.0,115490.0,1.62761932]
[1758133243901,0.0001,115500.0,115490.0,1.30022625]
[1758133244132,0.0001,115500.0,115490.0,2.20079448]
[1758133245018,0.0001,115500.0,115490.0,2.23094638]
[1758133245234,0.0001,115500.0,115490.0,1.69990625]
[1758133245468,0.17326017,115500.0,115490.0,0.66076625]
[1758133245745,0.17316017,115500.0,115490.0,1.02576625]
[1758133245951,0.20780078,115500.0,115490.0,1.02352625]
[1758133246169,0.20780078,115500.0,115490.0,0.00016142]
[1758133246170,0.17316017,115500.0,115490.0,0.00016142]
[1758133246396,0.98427396,115500.0,115490.0,0.00016142]
[1758133246621,1.34230808,115500.0,115490.0,0.00016142]
[1758133247290,1.16427396,115500.0,115490.0,0.00016142]
[1758133247501,1.52907396,115500.0,115490.0,0.00016142]
[1758133247718,0.89150951,115500.0,115490.0,0.00016142]
[1758133247939,1.61414363,115500.0,115490.0,0.00016142]
[1758133248372,1.24954363,115500.0,115490.0,0.00016142]
[1758133248590,1.24954363,115500.0,115490.0,0.00026142]
[1758133248591,1.61101363,115500.0,115490.0,0.00026142]
[1758133248804,1.16762984,115500.0,115490.0,0.00026142]
[1758133249018,1.16122396,115500.0,115490.0,0.00026142]
[1758133249237,0.98122396,115500.0,115490.0,0.00026142]
[1758133249663,0.98427396,115500.0,115490.0,0.00026142]
[1758133249908,1.34343396,115500.0,115490.0,0.00026142]
[1758133250127,0.87119429,115500.0,115490.0,0.00026142]
[1758133250349,0.17316017,115500.0,115490.0,0.17343658]
[1758133250581,0.53738595,115510.0,115490.0,0.17343658]
[1758133250823,0.17316017,115500.0,115490.0,0.17559658]
[1758133251031,0.17324595,115510.0,115490.0,0.17559658]
[1758133251254,0.25851562,115510.0,115490.0,0.17559346]
[1758133251474,0.25851485,115510.0,115500.0,0.17316017]
[1758133251690,0.17324518,115510.0,115500.0,0.17532017]
[1758133251927,0.0001,115510.0,115500.0,0.17532017]
[1758133252333,0.17324518,115510.0,115500.0,0.17532017]
[1758133252573,0.17324518,115510.0,115500.0,0.26058984]
[1758133252574,0.0001,115510.0,115500.0,0.26058984]
[1758133252791,0.0001,115510.0,115500.0,0.26214984]
[1758133253003,0.0001,115510.0,115500.0,0.62018396]
[1758133253216,0.0001,115510.0,115500.0,0.62008396]
[1758133253864,0.0001,115510.0,115500.0,1.41317252]
[1758133254321,0.0001,115510.0,115500.0,1.40317252]
[1758133254755,0.0001,115510.0,115500.0,1.0451384]
[1758133255407,0.0001,115510.0,115500.0,1.4451384]
[1758133255628,0.0001,115510.0,115500.0,1.80317252]
[1758133255860,0.0001,115510.0,115500.0,1.85317252]
[1758133256495,1e-08,115510.0,115500.0,1.85317252]
[1758133257140,1e-08,115510.0,115500.0,1.85663917]
[1758133257351,1e-08,115510.0,115500.0,1.49381093]
[1758133257579,1e-08,115510.0,115500.0,1.05045903]
[1758133257792,1e-08,115510.0,115500.0,1.77153315]
[1758133259934,1e-08,115510.0,115500.0,2.15971917]
[1758133260113,1e-08,115510.0,115500.0,2.20971917]
[1758133260337,1e-08,115520.0,115510.0,0.64329708]
[1758133260560,1e-08,115520.0,115510.0,1.40058087]
[1758133260774,1e-08,115520.0,115510.0,1.03213675]
[1758133261032,1e-08,115520.0,115510.0,1.39017087]
[1758133261463,1e-08,115520.0,115510.0,1.35001897]
[1758133261672,1e-08,115520.0,115510.0,1.35430485]
[1758133261879,1e-08,115520.0,115510.0,1.71233897]
[1758133262833,1e-08,115520.0,115510.0,1.74249087]
[1758133263286,1e-08,115520.0,115510.0,1.02217675]
[1758133263507,1e-08,115520.0,115510.0,0.99202485]
[1758133263709,1e-08,115520.0,115510.0,1.71209897]
[1758133264250,1e-08,115520.0,115510.0,1.01256485]
[1758133264458,1e-08,115520.0,115510.0,1.37059897]
[1758133264657,1e-08,115520.0,115510.0,1.37205897]
[1758133264863,1e-08,115520.0,115510.0,1.40221087]
[1758133265084,1e-08,115520.0,115510.0,1.74221087]
[1758133265434,1e-08,115520.0,115510.0,0.95378485]
[1758133265844,1e-08,115520.0,115510.0,1.35378485]
[1758133266089,1e-08,115520.0,115510.0,1.01224485]
[1758133266317,0.1731302,115520.0,115510.0,0.40004]
[1758133266556,0.62664234,115520.0,115510.0,0.36156]
[1758133266679,0.24565822,115520.0,115510.0,0.36156]
[1758133266882,0.2013902,115520.0,115510.0,0.36156]
[1758133267103,0.55942432,115520.0,115510.0,0.36156]
[1758133267360,0.55942432,115520.0,115510.0,0.36166]
[1758133267541,0.55942432,115520.0,115510.0,0.00014]
[1758133267939,0.98469399,115520.0,115510.0,0.00014]
[1758133268147,1.06996366,115520.0,115510.0,0.00014]
[1758133268822,1.24996366,115520.0,115510.0,0.00014]
[1758133269695,0.5311793,115510.0,115500.0,0.00014]
[1758133269920,0.61644897,115510.0,115500.0,0.00014]
[1758133270130,1.00566897,115510.0,115500.0,0.00014]
[1758133270343,1.09093864,115510.0,115500.0,0.00014]
[1758133270559,0.73290452,115510.0,115500.0,0.00014]
[1758133270778,1.09093864,115510.0,115500.0,0.00014]
[1758133271001,1.09085864,115510.0,115500.0,0.00014]
[1758133271454,0.28667485,115510.0,115500.0,0.00014]
[1758133271666,0.98470897,115510.0,115500.0,0.00014]
[1758133272770,0.51316017,115500.0,115490.0,0.00026142]
[1758133272984,0.95902984,115500.0,115490.0,0.00026142]
[1758133273201,1.06999363,115500.0,115490.0,0.00026142]
[1758133273391,1.43047363,115500.0,115490.0,0.00026142]
[1758133273722,0.51317516,115490.0,115480.0,1e-08]
[1758133273950,0.95647895,115490.0,115480.0,0.00014146]
[1758133274170,0.98473895,115490.0,115480.0,0.00014146]
[1758133274383,1.07000862,115490.0,115480.0,0.00014146]
[1758133275862,1.07000862,115490.0,115480.0,1e-08]
[1758133276084,0.51319016,115480.0,115470.0,1e-08]
[1758133276352,0.95845983,115480.0,115470.0,1e-08]
[1758133276563,1.34475395,115480.0,115470.0,1e-08]
[1758133276742,1.4300236,115480.0,115470.0,1e-08]
[1758133277162,1.0700236,115480.0,115470.0,1e-08]
[1758133277542,0.71198948,115480.0,115470.0,1e-08]
[1758133277860,1.07178948,115480.0,115470.0,1e-08]
[1758133278041,1.4298236,115480.0,115470.0,1e-08]
[1758133278875,1.0700236,115480.0,115470.0,1e-08]
[1758133279088,1.4295836,115480.0,115470.0,1e-08]
[1758133280106,1.43591307,115480.0,115470.0,1e-08]
[1758133280696,0.71831895,115480.0,115470.0,1e-08]
[1758133280892,1.07763895,115480.0,115470.0,1e-08]
[1758133281102,1.43563307,115480.0,115470.0,1e-08]
[1758133282678,1.07735895,115480.0,115470.0,1e-08]
[1758133282887,1.43535307,115480.0,115470.0,1e-08]
[1758133283104,1.07635307,115480.0,115470.0,1e-08]
[1758133283323,1.43535307,115480.0,115470.0,1e-08]
[1758133284219,0.17322016,115460.0,115450.0,0.00034]
[1758133284431,1.38464009,115460.0,115450.0,0.0004814]
[1758133284647,0.51323516,115450.0,115440.0,1e-08]
[1758133284859,1.31457307,115450.0,115440.0,1e-08]
[1758133285069,1.34283307,115450.0,115440.0,1e-08]
[1758133285309,1.42810274,115450.0,115440.0,1e-08]
[1758133285525,1.78674274,115450.0,115440.0,1e-08]
[1758133285729,1.0706745,115450.0,115440.0,1e-08]
[1758133285940,1.78674274,115450.0,115440.0,1e-08]
[1758133288107,1.78674274,115450.0,115430.0,1e-08]
[1758133288108,0.51325017,115440.0,115430.0,1e-08]
[1758133288499,1.04182363,115440.0,115430.0,1e-08]
[1758133288707,1.07024951,115440.0,115430.0,1e-08]
[1758133288925,1.31467396,115440.0,115430.0,1e-08]
[1758133289147,0.53128429,115440.0,115430.0,1e-08]
[1758133289354,0.88936429,115440.0,115430.0,1e-08]
[1758133289538,0.53133017,115440.0,115430.0,1e-08]
[1758133289715,0.88936429,115440.0,115430.0,1e-08]
[1758133289926,0.23320318,115460.0,115430.0,0.00208001]
[1758133290230,0.23320318,115460.0,115440.0,0.17325017]
[1758133290231,0.17323516,115450.0,115440.0,0.17325017]
[1758133290432,0.18188116,115460.0,115440.0,0.17679017]
[1758133290612,0.53991528,115460.0,115440.0,0.17679017]
[1758133290825,0.17320588,115470.0,115450.0,0.17469399]
[1758133291025,0.17322016,115460.0,115450.0,0.25996366]
[1758133291247,0.53124,115470.0,115460.0,0.17322016]
[1758133291248,0.17320516,115470.0,115460.0,0.17322016]
[1758133291397,0.17320516,115470.0,115460.0,0.00208]
[1758133291605,0.53123928,115470.0,115460.0,0.00354]
[1758133291829,0.35803412,115480.0,115460.0,0.26202983]
[1758133292060,0.17320516,115470.0,115460.0,0.26202983]
[1758133292267,0.53123928,115470.0,115460.0,0.08880967]
[1758133292484,0.17320516,115470.0,115460.0,0.26202983]
[1758133292703,0.00014114,115480.0,115470.0,0.17320516]
[1758133292943,0.1733313,115480.0,115470.0,0.08880967]
[1758133293160,0.53136542,115480.0,115470.0,0.08734967]
[1758133293388,0.17322016,115460.0,115440.0,1.01530999]
[1758133293608,0.17323516,115450.0,115440.0,0.84206]
[1758133293806,0.17323516,115450.0,115440.0,0.48528]
[1758133294032,0.53126928,115450.0,115440.0,0.48526967]
[1758133294240,0.17325017,115440.0,115430.0,0.17326421]
[1758133294451,0.53126928,115450.0,115440.0,0.00201]
[1758133294883,0.17325017,115440.0,115430.0,1e-08]
[1758133295112,0.53128429,115440.0,115430.0,1e-08]
[1758133295322,0.88836429,115440.0,115430.0,1e-08]
[1758133295551,0.89052429,115440.0,115430.0,1e-08]
[1758133295783,1.34209396,115440.0,115430.0,1e-08]
[1758133296005,0.1732952,115410.0,115400.0,4e-05]
[1758133296236,1.22828932,115410.0,115400.0,1e-08]
[1758133296458,1.72843706,115410.0,115400.0,1e-08]
[1758133296677,1.34309311,115410.0,115400.0,1e-08]
[1758133296901,1.34189899,115410.0,115400.0,1e-08]
[1758133297180,1.42716866,115410.0,115400.0,1e-08]
[1758133297390,1.42708866,115410.0,115400.0,1e-08]
[1758133297559,1.06905454,115410.0,115400.0,1e-08]
[1758133297771,1.07032866,115410.0,115400.0,1e-08]
[1758133297977,0.8700552,115410.0,115400.0,1e-08]
[1758133298166,0.8700552,115410.0,115400.0,0.00201001]
[1758133298167,0.5132952,115410.0,115400.0,0.00201001]
[1758133298368,0.53132932,115410.0,115400.0,0.00201001]